[Event "Live Chess"]
[Site "Chess.com"]
[Date "2023.05.20"]
[Round "-"]
[White "omisoc"]
[Black "AbilifyXL"]
[Result "1-0"]
[WhiteElo "2149"]
[BlackElo "1959"]
[TimeControl "300"]
[EndTime "14:29:16 PDT"]
[Termination "omisoc won by resignation"]

1. e4 {[%clk 0:04:57]} 1... d5 {[%clk 0:04:59.2]} 2. d3 {[%clk 0:04:53.5]} 2...
c6 {[%clk 0:04:55.5]} 3. c3 {[%clk 0:04:49.1]} 3... e5 {[%clk 0:04:45]} 4. Nf3
{[%clk 0:04:47.6]} 4... Nd7 {[%clk 0:04:41.9]} 5. Nbd2 {[%clk 0:04:43.6]} 5...
Ngf6 {[%clk 0:04:40.8]} 6. Be2 {[%clk 0:04:41.6]} 6... Bd6 {[%clk 0:04:36.8]} 7.
O-O {[%clk 0:04:39.2]} 7... O-O {[%clk 0:04:36]} 8. Re1 {[%clk 0:04:38.5]} 8...
Re8 {[%clk 0:04:35]} 9. Bf1 {[%clk 0:04:37.7]} 9... Qc7 {[%clk 0:04:33.1]} 10.
Qc2 {[%clk 0:04:35.7]} 10... Nf8 {[%clk 0:04:31.8]} 11. a3 {[%clk 0:04:32.8]}
11... h6 {[%clk 0:04:30.5]} 12. b4 {[%clk 0:04:30.4]} 12... Ng6 {[%clk
0:04:29.2]} 13. Bb2 {[%clk 0:04:29.7]} 13... Bd7 {[%clk 0:04:27.4]} 14. c4
{[%clk 0:04:27.8]} 14... d4 {[%clk 0:04:26.1]} 15. c5 {[%clk 0:04:26.1]} 15...
Bf8 {[%clk 0:04:24.6]} 16. Nc4 {[%clk 0:04:21.8]} 16... Be6 {[%clk 0:04:21.8]}
17. g3 {[%clk 0:04:14.5]} 17... Rad8 {[%clk 0:04:19.9]} 18. h4 {[%clk
0:04:11.3]} 18... Bxc4 {[%clk 0:04:11.7]} 19. Qxc4 {[%clk 0:04:05.2]} 19... a6
{[%clk 0:04:04.3]} 20. Bh3 {[%clk 0:04:03]} 20... h5 {[%clk 0:03:58.7]} 21. Ng5
{[%clk 0:03:57.1]} 21... Ng4 {[%clk 0:03:45.1]} 22. f3 {[%clk 0:03:33]} 22...
Ne3 {[%clk 0:03:42.1]} 23. Qb3 {[%clk 0:03:10.7]} 23... Re7 {[%clk 0:03:25]} 24.
Bc1 {[%clk 0:03:09.2]} 24... b5 {[%clk 0:02:56.4]} 25. Bf5 {[%clk 0:02:44.3]}
25... Nxf5 {[%clk 0:02:46.4]} 26. exf5 {[%clk 0:02:42.6]} 26... Nh8 {[%clk
0:02:44.9]} 27. Ne4 {[%clk 0:02:29]} 27... Ree8 {[%clk 0:02:31.4]} 28. a4 {[%clk
0:02:27.6]} 28... Be7 {[%clk 0:02:25.9]} 29. axb5 {[%clk 0:02:24.4]} 29... axb5
{[%clk 0:02:25.8]} 30. Bg5 {[%clk 0:02:19.3]} 30... Bxg5 {[%clk 0:02:21.4]} 31.
hxg5 {[%clk 0:02:17.6]} 31... Kf8 {[%clk 0:02:17.5]} 32. Kg2 {[%clk 0:02:12.3]}
32... Ra8 {[%clk 0:02:16]} 33. g4 {[%clk 0:02:10.4]} 33... hxg4 {[%clk
0:02:07.9]} 34. fxg4 {[%clk 0:02:03.5]} 34... Qb7 {[%clk 0:02:05.9]} 35. Nd6
{[%clk 0:01:55.9]} 35... Rxa1 {[%clk 0:02:01.7]} 36. Rxa1 {[%clk 0:01:48.9]}
36... Qb8 {[%clk 0:01:57.8]} 37. Rh1 {[%clk 0:01:14]} 37... Kg8 {[%clk 0:01:49]}
38. Rxh8+ {[%clk 0:01:11.8]} 38... Kxh8 {[%clk 0:01:48]} 39. Qxf7 {[%clk
0:01:10.8]} 39... Rf8 {[%clk 0:01:28.1]} 40. Qh5+ {[%clk 0:01:07.6]} 40... Kg8
{[%clk 0:01:27]} 41. g6 {[%clk 0:01:07]} 1-0

[Event "Live Chess"]
[Site "Chess.com"]
[Date "2023.05.20"]
[Round "-"]
[White "LiamClery2020"]
[Black "bristolunichess"]
[Result "0-1"]
[WhiteElo "2071"]
[BlackElo "1856"]
[TimeControl "300"]
[EndTime "14:29:29 PDT"]
[Termination "bristolunichess won by resignation"]

1. e4 {[%clk 0:04:59.8]} 1... e5 {[%clk 0:04:54.1]} 2. Nc3 {[%clk 0:04:59]} 2...
Nc6 {[%clk 0:04:42]} 3. Bc4 {[%clk 0:04:57.6]} 3... Nf6 {[%clk 0:04:39.6]} 4. d3
{[%clk 0:04:56.5]} 4... Na5 {[%clk 0:04:25.2]} 5. Bb3 {[%clk 0:04:54.9]} 5...
Nxb3 {[%clk 0:04:22.5]} 6. axb3 {[%clk 0:04:54.8]} 6... Bb4 {[%clk 0:04:19.6]}
7. Bd2 {[%clk 0:04:50]} 7... d6 {[%clk 0:04:17]} 8. Nf3 {[%clk 0:04:48.3]} 8...
Bg4 {[%clk 0:04:14.2]} 9. O-O {[%clk 0:04:46.8]} 9... h5 {[%clk 0:04:05.8]} 10.
Ra4 {[%clk 0:04:42]} 10... a5 {[%clk 0:04:01.7]} 11. h3 {[%clk 0:04:28.7]} 11...
Bd7 {[%clk 0:03:42.1]} 12. Ra1 {[%clk 0:04:26.8]} 12... c6 {[%clk 0:03:28]} 13.
Ne2 {[%clk 0:04:24]} 13... Bxd2 {[%clk 0:03:23.3]} 14. Qxd2 {[%clk 0:04:23.9]}
14... Qc7 {[%clk 0:03:21.9]} 15. Ng3 {[%clk 0:04:18.5]} 15... Be6 {[%clk
0:03:18]} 16. Rfe1 {[%clk 0:04:11.5]} 16... g6 {[%clk 0:03:16.7]} 17. d4 {[%clk
0:04:10.5]} 17... h4 {[%clk 0:03:13.8]} 18. dxe5 {[%clk 0:03:56.4]} 18... hxg3
{[%clk 0:03:01.2]} 19. exf6 {[%clk 0:03:54.8]} 19... gxf2+ {[%clk 0:02:55.5]}
20. Qxf2 {[%clk 0:03:54.7]} 20... O-O-O {[%clk 0:02:47.3]} 21. b4 {[%clk
0:03:49.7]} 21... Rh5 {[%clk 0:02:30.8]} 22. Red1 {[%clk 0:03:39.4]} 22... Rdh8
{[%clk 0:02:21.2]} 23. Rxa5 {[%clk 0:03:36]} 23... d5 {[%clk 0:02:08.9]} 24.
exd5 {[%clk 0:03:28.3]} 24... Bxh3 {[%clk 0:02:04.4]} 25. Ra8+ {[%clk
0:03:23.6]} 25... Kd7 {[%clk 0:01:57.2]} 26. dxc6+ {[%clk 0:03:22]} 26... Kxc6
{[%clk 0:01:50.4]} 27. Qc5+ {[%clk 0:03:19.8]} 27... Rxc5 {[%clk 0:01:48.8]} 28.
Rxh8 {[%clk 0:03:16]} 28... Rh5 {[%clk 0:01:41.1]} 29. Rxh5 {[%clk 0:03:12.5]}
29... gxh5 {[%clk 0:01:40.2]} 30. gxh3 {[%clk 0:03:12.4]} 30... Qg3+ {[%clk
0:01:39.3]} 31. Kf1 {[%clk 0:03:09.1]} 31... Qxf3+ {[%clk 0:01:38.7]} 32. Ke1
{[%clk 0:03:09]} 32... Qe3+ {[%clk 0:01:36.3]} 33. Kf1 {[%clk 0:03:08.2]} 33...
Qxh3+ {[%clk 0:01:35.9]} 34. Ke1 {[%clk 0:03:07.2]} 34... Qe3+ {[%clk
0:01:33.7]} 35. Kf1 {[%clk 0:03:06.4]} 35... Qf3+ {[%clk 0:01:33.2]} 36. Ke1
{[%clk 0:03:05.6]} 36... Qxf6 {[%clk 0:01:31.6]} 37. Rd3 {[%clk 0:03:04.2]}
37... Qxb2 {[%clk 0:01:27.8]} 38. b5+ {[%clk 0:03:02.7]} 38... Kb6 {[%clk
0:01:26.1]} 39. c4 {[%clk 0:03:01]} 39... Qb1+ {[%clk 0:01:24.1]} 40. Rd1 {[%clk
0:03:00]} 40... Qe4+ {[%clk 0:01:23.6]} 41. Kf2 {[%clk 0:02:59.1]} 41... Qxc4
{[%clk 0:01:23.2]} 42. Rb1 {[%clk 0:02:56.9]} 42... Qc2+ {[%clk 0:01:22.2]} 0-1

[Event "Live Chess"]
[Site "Chess.com"]
[Date "2023.05.20"]
[Round "-"]
[White "AttackingSnowLeopard"]
[Black "LutherSullivan"]
[Result "1-0"]
[WhiteElo "2094"]
[BlackElo "2067"]
[TimeControl "300"]
[EndTime "14:29:34 PDT"]
[Termination "AttackingSnowLeopard won on time"]

1. d4 {[%clk 0:04:58.1]} 1... Nf6 {[%clk 0:04:58]} 2. c4 {[%clk 0:04:55.8]} 2...
g6 {[%clk 0:04:56.6]} 3. Nc3 {[%clk 0:04:54.4]} 3... d5 {[%clk 0:04:51.3]} 4.
cxd5 {[%clk 0:04:53.1]} 4... Nxd5 {[%clk 0:04:50.5]} 5. e4 {[%clk 0:04:52.7]}
5... Nxc3 {[%clk 0:04:46.5]} 6. bxc3 {[%clk 0:04:52.6]} 6... Bg7 {[%clk
0:04:46.2]} 7. Be3 {[%clk 0:04:51.7]} 7... c5 {[%clk 0:04:44.6]} 8. Qd2 {[%clk
0:04:49.9]} 8... Qa5 {[%clk 0:04:43.3]} 9. Rc1 {[%clk 0:04:48.5]} 9... cxd4
{[%clk 0:04:38.9]} 10. cxd4 {[%clk 0:04:47]} 10... Qxd2+ {[%clk 0:04:38.6]} 11.
Bxd2 {[%clk 0:04:46.5]} 11... O-O {[%clk 0:04:38.3]} 12. Nf3 {[%clk 0:04:45.9]}
12... Bg4 {[%clk 0:04:23.4]} 13. Be3 {[%clk 0:04:44.3]} 13... Nd7 {[%clk
0:02:55.8]} 14. Be2 {[%clk 0:04:35.2]} 14... Rfc8 {[%clk 0:02:51.1]} 15. Kd2
{[%clk 0:04:29.4]} 15... Nb6 {[%clk 0:02:44.3]} 16. d5 {[%clk 0:04:22.3]} 16...
f5 {[%clk 0:02:23.6]} 17. Rxc8+ {[%clk 0:04:14.3]} 17... Rxc8 {[%clk 0:02:21.6]}
18. Bxb6 {[%clk 0:04:13.9]} 18... axb6 {[%clk 0:02:15.3]} 19. h3 {[%clk
0:04:10.1]} 19... Bh6+ {[%clk 0:02:01.1]} 20. Kd3 {[%clk 0:04:01.2]} 20... fxe4+
{[%clk 0:01:58.3]} 21. Kxe4 {[%clk 0:03:59.6]} 21... Bf5+ {[%clk 0:01:56.6]} 22.
Kd4 {[%clk 0:03:59]} 22... Bg7+ {[%clk 0:01:53.5]} 23. Ke3 {[%clk 0:03:56.7]}
23... Bh6+ {[%clk 0:01:52.1]} 24. Kd4 {[%clk 0:03:53.3]} 24... Bg7+ {[%clk
0:01:50.5]} 25. Ne5 {[%clk 0:03:29.3]} 25... Rc2 {[%clk 0:01:49]} 26. Bd3 {[%clk
0:03:27.4]} 26... Rd2 {[%clk 0:01:44.7]} 27. Ke3 {[%clk 0:03:17.6]} 27... Rxa2
{[%clk 0:01:23.3]} 28. Bxf5 {[%clk 0:03:15.2]} 28... gxf5 {[%clk 0:01:22.9]} 29.
Nd7 {[%clk 0:03:05.2]} 29... Bh6+ {[%clk 0:01:12.5]} 30. Kf3 {[%clk 0:02:56.4]}
30... Ra3+ {[%clk 0:01:11.4]} 31. Ke2 {[%clk 0:02:54.8]} 31... Ra2+ {[%clk
0:01:06.6]} 32. Kd3 {[%clk 0:02:52]} 32... Rxf2 {[%clk 0:01:04.1]} 33. g4 {[%clk
0:02:50.9]} 33... f4 {[%clk 0:00:53.2]} 34. Nxb6 {[%clk 0:02:44.2]} 34... f3
{[%clk 0:00:50.6]} 35. Nc4 {[%clk 0:02:43.1]} 35... Bf4 {[%clk 0:00:45.8]} 36.
Ke4 {[%clk 0:02:41.2]} 36... Bd6 {[%clk 0:00:40.1]} 37. Rb1 {[%clk 0:02:36.7]}
37... Rh2 {[%clk 0:00:17.8]} 38. Nxd6 {[%clk 0:02:26.7]} 38... exd6 {[%clk
0:00:17.3]} 39. Kxf3 {[%clk 0:02:25.8]} 39... Rxh3+ {[%clk 0:00:16.8]} 40. Kf4
{[%clk 0:02:25.5]} 40... Rd3 {[%clk 0:00:15.9]} 41. Kf5 {[%clk 0:02:17.8]} 41...
Rxd5+ {[%clk 0:00:14.2]} 42. Kf6 {[%clk 0:02:17.2]} 42... b5 {[%clk 0:00:13.2]}
43. Ra1 {[%clk 0:02:13.1]} 43... h6 {[%clk 0:00:11.3]} 44. Kg6 {[%clk
0:02:10.9]} 44... Rg5+ {[%clk 0:00:09.9]} 45. Kxh6 {[%clk 0:02:09.1]} 45... Rxg4
{[%clk 0:00:09.8]} 46. Ra7 {[%clk 0:02:07.3]} 46... b4 {[%clk 0:00:07.9]} 47.
Rb7 {[%clk 0:02:06.5]} 47... Kf8 {[%clk 0:00:07.1]} 48. Kh5 {[%clk 0:02:04.4]}
48... Rg7 {[%clk 0:00:06.2]} 49. Rxb4 {[%clk 0:02:02.5]} 49... Ke7 {[%clk
0:00:06.1]} 50. Rb7+ {[%clk 0:02:00.2]} 50... Ke6 {[%clk 0:00:05.5]} 51. Rxg7
{[%clk 0:01:58.8]} 51... d5 {[%clk 0:00:05.1]} 52. Rg1 {[%clk 0:01:57.6]} 52...
Kf5 {[%clk 0:00:04.3]} 53. Rf1+ {[%clk 0:01:55.8]} 53... Ke4 {[%clk 0:00:03.7]}
54. Kg4 {[%clk 0:01:55.5]} 54... d4 {[%clk 0:00:02.7]} 55. Re1+ {[%clk
0:01:55.2]} 55... Kd3 {[%clk 0:00:02.4]} 56. Kf3 {[%clk 0:01:54.8]} 56... Kd2
{[%clk 0:00:01.8]} 57. Kf2 {[%clk 0:01:53.7]} 57... d3 {[%clk 0:00:01.7]} 58.
Re8 {[%clk 0:01:51.2]} 58... Kc2 {[%clk 0:00:00.6]} 59. Rd8 {[%clk 0:01:50.5]}
59... d2 {[%clk 0:00:00.2]} 60. Ke2 {[%clk 0:01:49.7]} 1-0

[Event "Live Chess"]
[Site "Chess.com"]
[Date "2023.05.20"]
[Round "-"]
[White "SavagePawn7"]
[Black "McSlash1"]
[Result "0-1"]
[WhiteElo "788"]
[BlackElo "2040"]
[TimeControl "300"]
[EndTime "14:29:38 PDT"]
[Termination "McSlash1 won by resignation"]

1. e4 {[%clk 0:04:56.8]} 1... c5 {[%clk 0:04:59.5]} 2. d4 {[%clk 0:04:55.3]}
2... cxd4 {[%clk 0:04:59.4]} 3. c3 {[%clk 0:04:53.6]} 3... dxc3 {[%clk
0:04:59.3]} 4. Nxc3 {[%clk 0:04:52.6]} 4... Nc6 {[%clk 0:04:59.2]} 5. Nf3 {[%clk
0:04:50.7]} 5... e6 {[%clk 0:04:58.8]} 6. Bc4 {[%clk 0:04:48.6]} 6... Qc7 {[%clk
0:04:58.4]} 7. h3 {[%clk 0:04:27.1]} 7... Nf6 {[%clk 0:04:56.2]} 8. Qe2 {[%clk
0:04:21.6]} 8... h5 {[%clk 0:04:53.6]} 9. Bg5 {[%clk 0:04:16.7]} 9... a6 {[%clk
0:04:45.3]} 10. Bxf6 {[%clk 0:04:14.4]} 10... gxf6 {[%clk 0:04:45.2]} 11. O-O-O
{[%clk 0:04:08.8]} 11... b5 {[%clk 0:04:44]} 12. Bb3 {[%clk 0:03:59.5]} 12... b4
{[%clk 0:04:43.4]} 13. Na4 {[%clk 0:03:49.9]} 13... Nd4+ {[%clk 0:04:42.2]} 14.
Qc4 {[%clk 0:03:25.9]} 14... Nxb3+ {[%clk 0:04:35]} 15. axb3 {[%clk 0:03:22.4]}
15... Qxc4+ {[%clk 0:04:31.5]} 16. bxc4 {[%clk 0:03:20.6]} 16... Bb7 {[%clk
0:04:30.4]} 17. Rhe1 {[%clk 0:03:12.1]} 17... Rc8 {[%clk 0:04:26.8]} 18. b3
{[%clk 0:03:09.9]} 18... Bc6 {[%clk 0:04:24.6]} 19. Nb6 {[%clk 0:03:07]} 19...
Rb8 {[%clk 0:04:22.2]} 20. c5 {[%clk 0:02:55.2]} 20... Bxc5 {[%clk 0:04:19.2]}
21. Nd4 {[%clk 0:02:43.4]} 21... Rxb6 {[%clk 0:04:15.8]} 22. Kb1 {[%clk
0:02:36.9]} 22... Be7 {[%clk 0:04:09]} 0-1

[Event "Live Chess"]
[Site "Chess.com"]
[Date "2023.05.20"]
[Round "-"]
[White "HoarseyHorsey"]
[Black "Singapourfeuj"]
[Result "0-1"]
[WhiteElo "1403"]
[BlackElo "2252"]
[TimeControl "300"]
[EndTime "14:29:38 PDT"]
[Termination "Singapourfeuj won by resignation"]

1. d4 {[%clk 0:04:59.4]} 1... Nf6 {[%clk 0:04:58.1]} 2. c4 {[%clk 0:04:58.5]}
2... g6 {[%clk 0:04:57.2]} 3. f3 {[%clk 0:04:57.8]} 3... Bg7 {[%clk 0:04:55.6]}
4. e4 {[%clk 0:04:57.1]} 4... d6 {[%clk 0:04:54.5]} 5. Nc3 {[%clk 0:04:56.4]}
5... O-O {[%clk 0:04:53]} 6. Nge2 {[%clk 0:04:54.1]} 6... c5 {[%clk 0:04:51.8]}
7. d5 {[%clk 0:04:52.7]} 7... e6 {[%clk 0:04:51]} 8. Bg5 {[%clk 0:04:50.1]} 8...
exd5 {[%clk 0:04:50.1]} 9. cxd5 {[%clk 0:04:50]} 9... h6 {[%clk 0:04:49]} 10.
Be3 {[%clk 0:04:45.2]} 10... a6 {[%clk 0:04:44.5]} 11. Qd2 {[%clk 0:04:43.9]}
11... b5 {[%clk 0:04:42.1]} 12. Bxh6 {[%clk 0:04:40.5]} 12... Nxe4 {[%clk
0:04:40]} 13. Nxe4 {[%clk 0:04:38.5]} 13... Qh4+ {[%clk 0:04:38.7]} 14. N4g3
{[%clk 0:04:35.1]} 14... Bxh6 {[%clk 0:04:36.6]} 15. Qd3 {[%clk 0:04:27.5]}
15... Bf5 {[%clk 0:04:33.9]} 16. Qe3 {[%clk 0:04:22.2]} 16... Bxe3 {[%clk
0:04:30.2]} 0-1

[Event "Live Chess"]
[Site "Chess.com"]
[Date "2023.05.20"]
[Round "-"]
[White "KeithArkell"]
[Black "Jo1ts"]
[Result "1-0"]
[WhiteElo "2618"]
[BlackElo "736"]
[TimeControl "300"]
[EndTime "14:29:49 PDT"]
[Termination "KeithArkell won by resignation"]

1. d4 {[%clk 0:04:58]} 1... d5 {[%clk 0:04:58]} 2. Nf3 {[%clk 0:04:57.1]} 2...
Nf6 {[%clk 0:04:54.7]} 3. c4 {[%clk 0:04:56.4]} 3... Bf5 {[%clk 0:04:44.3]} 4.
cxd5 {[%clk 0:04:55.4]} 4... Qxd5 {[%clk 0:04:40.4]} 5. Nc3 {[%clk 0:04:54.5]}
5... Qa5 {[%clk 0:04:35.4]} 6. Bd2 {[%clk 0:04:52.3]} 6... Nc6 {[%clk
0:04:32.6]} 7. e4 {[%clk 0:04:50.6]} 7... Bg4 {[%clk 0:04:23.6]} 8. Nd5 {[%clk
0:04:49.5]} 8... Bxf3 {[%clk 0:04:00]} 9. gxf3 {[%clk 0:04:47.9]} 9... Qxd5
{[%clk 0:03:53.5]} 10. exd5 {[%clk 0:04:45.5]} 10... Nxd5 {[%clk 0:03:53.4]} 11.
Bc4 {[%clk 0:04:44]} 11... Nb6 {[%clk 0:03:48.5]} 12. Bb5 {[%clk 0:04:43.2]}
12... e6 {[%clk 0:03:38.2]} 13. Bxc6+ {[%clk 0:04:41.7]} 13... bxc6 {[%clk
0:03:38.1]} 14. Qc2 {[%clk 0:04:40.4]} 14... Bd6 {[%clk 0:03:31.6]} 15. Qxc6+
{[%clk 0:04:38.5]} 15... Nd7 {[%clk 0:03:25.4]} 16. Qxa8+ {[%clk 0:04:36.8]} 1-0

[Event "Live Chess"]
[Site "Chess.com"]
[Date "2023.05.20"]
[Round "-"]
[White "Tushinskiy"]
[Black "gmnorfolk"]
[Result "0-1"]
[WhiteElo "2140"]
[BlackElo "2116"]
[TimeControl "300"]
[EndTime "14:29:51 PDT"]
[Termination "gmnorfolk won by checkmate"]

1. d4 {[%clk 0:04:53.3]} 1... Nf6 {[%clk 0:04:58.4]} 2. c3 {[%clk 0:04:53.2]}
2... d5 {[%clk 0:04:55]} 3. Nf3 {[%clk 0:04:50.2]} 3... Bf5 {[%clk 0:04:51.9]}
4. Bf4 {[%clk 0:04:45.8]} 4... e6 {[%clk 0:04:50.8]} 5. Nbd2 {[%clk 0:04:43.5]}
5... Bd6 {[%clk 0:04:49.2]} 6. Bg3 {[%clk 0:04:42.6]} 6... O-O {[%clk
0:04:44.9]} 7. e3 {[%clk 0:04:37.4]} 7... Nbd7 {[%clk 0:04:43.4]} 8. Ne5 {[%clk
0:04:31.2]} 8... Bg6 {[%clk 0:04:41.4]} 9. f4 {[%clk 0:04:28.3]} 9... Ne4 {[%clk
0:04:39.9]} 10. Nxe4 {[%clk 0:04:25.8]} 10... Bxe4 {[%clk 0:04:38]} 11. Qd2
{[%clk 0:04:23.1]} 11... f6 {[%clk 0:04:32.2]} 12. Nxd7 {[%clk 0:04:17]} 12...
Qxd7 {[%clk 0:04:30.7]} 13. Bd3 {[%clk 0:04:16.2]} 13... Bxd3 {[%clk 0:04:25.3]}
14. Qxd3 {[%clk 0:04:16.1]} 14... c5 {[%clk 0:04:24.5]} 15. O-O {[%clk
0:04:14.1]} 15... f5 {[%clk 0:04:19]} 16. Rac1 {[%clk 0:04:05.2]} 16... c4
{[%clk 0:04:14.6]} 17. Qe2 {[%clk 0:04:03.6]} 17... b5 {[%clk 0:04:14.1]} 18. h3
{[%clk 0:04:01.7]} 18... a5 {[%clk 0:04:14]} 19. Kh2 {[%clk 0:04:00.7]} 19... b4
{[%clk 0:04:07.2]} 20. Rf2 {[%clk 0:03:58.6]} 20... Rfb8 {[%clk 0:04:01.1]} 21.
Rg1 {[%clk 0:03:50.8]} 21... a4 {[%clk 0:03:59.7]} 22. Bh4 {[%clk 0:03:48]}
22... a3 {[%clk 0:03:58.4]} 23. cxb4 {[%clk 0:03:44.6]} 23... Rxb4 {[%clk
0:03:55.1]} 24. bxa3 {[%clk 0:03:43]} 24... Rxa3 {[%clk 0:03:54.2]} 25. g4
{[%clk 0:03:42.4]} 25... g6 {[%clk 0:03:51.8]} 26. gxf5 {[%clk 0:03:40.5]} 26...
exf5 {[%clk 0:03:49.4]} 27. Bf6 {[%clk 0:03:39.3]} 27... Rba4 {[%clk 0:03:44.2]}
28. Qf3 {[%clk 0:03:37.2]} 28... Rxa2 {[%clk 0:03:39.2]} 29. Qxd5+ {[%clk
0:03:30.8]} 29... Qf7 {[%clk 0:03:28.1]} 30. Qxd6 {[%clk 0:03:26.4]} 30... Rxf2+
{[%clk 0:03:25.9]} 31. Kg3 {[%clk 0:03:24.4]} 31... Raa2 {[%clk 0:03:13.8]} 32.
d5 {[%clk 0:03:06.8]} 32... Rfe2 {[%clk 0:02:53.6]} 33. Rb1 {[%clk 0:03:04.6]}
33... Rxe3+ {[%clk 0:02:47.6]} 34. Kh4 {[%clk 0:03:03.8]} 34... g5+ {[%clk
0:02:42.7]} 35. Bxg5 {[%clk 0:03:00.2]} 35... Rxh3+ {[%clk 0:02:33.7]} 36. Kxh3
{[%clk 0:02:59]} 36... Qh5+ {[%clk 0:02:30.8]} 37. Bh4 {[%clk 0:02:58.4]} 37...
Qg4# {[%clk 0:02:28.4]} 0-1

[Event "Live Chess"]
[Site "Chess.com"]
[Date "2023.05.20"]
[Round "-"]
[White "ViktorTheCoolBoy"]
[Black "grillage"]
[Result "1-0"]
[WhiteElo "2511"]
[BlackElo "1846"]
[TimeControl "300"]
[EndTime "14:29:51 PDT"]
[Termination "ViktorTheCoolBoy won by checkmate"]

1. d4 {[%clk 0:04:58.3]} 1... Nf6 {[%clk 0:04:57.7]} 2. c4 {[%clk 0:04:57.4]}
2... e6 {[%clk 0:04:56.7]} 3. Nc3 {[%clk 0:04:56.6]} 3... Bb4 {[%clk 0:04:56]}
4. g3 {[%clk 0:04:53.6]} 4... O-O {[%clk 0:04:52.5]} 5. Bg2 {[%clk 0:04:52.7]}
5... d6 {[%clk 0:04:45.9]} 6. Nf3 {[%clk 0:04:51.4]} 6... Nbd7 {[%clk
0:04:37.7]} 7. O-O {[%clk 0:04:49.7]} 7... Bxc3 {[%clk 0:04:37]} 8. bxc3 {[%clk
0:04:48.6]} 8... e5 {[%clk 0:04:35.8]} 9. Qc2 {[%clk 0:04:48]} 9... Re8 {[%clk
0:04:31.1]} 10. Re1 {[%clk 0:04:46.3]} 10... c5 {[%clk 0:04:22.1]} 11. e4 {[%clk
0:04:42.6]} 11... Nf8 {[%clk 0:04:13.2]} 12. Ba3 {[%clk 0:04:38]} 12... b6
{[%clk 0:04:09.7]} 13. Rad1 {[%clk 0:04:35.5]} 13... Ba6 {[%clk 0:04:06.3]} 14.
dxe5 {[%clk 0:04:32]} 14... Ng4 {[%clk 0:03:42.6]} 15. exd6 {[%clk 0:04:27.4]}
15... Bxc4 {[%clk 0:03:41]} 16. h3 {[%clk 0:04:25.5]} 16... Nf6 {[%clk
0:03:37.8]} 17. e5 {[%clk 0:04:23.8]} 17... N6d7 {[%clk 0:03:33.1]} 18. h4
{[%clk 0:04:17.4]} 18... Ng6 {[%clk 0:03:29.3]} 19. h5 {[%clk 0:04:12]} 19...
Ngf8 {[%clk 0:03:22.5]} 20. Re4 {[%clk 0:04:08.5]} 20... Be6 {[%clk 0:03:14.3]}
21. Bc1 {[%clk 0:04:04.1]} 21... Rc8 {[%clk 0:03:10]} 22. Ng5 {[%clk 0:04:00]}
22... Bf5 {[%clk 0:03:05.8]} 23. f4 {[%clk 0:03:58.6]} 23... Bxe4 {[%clk
0:03:04.5]} 24. Bxe4 {[%clk 0:03:57.4]} 24... h6 {[%clk 0:03:00.6]} 25. Bh7+
{[%clk 0:03:54.8]} 25... Nxh7 {[%clk 0:02:53.4]} 26. Qxh7+ {[%clk 0:03:54.7]}
26... Kf8 {[%clk 0:02:52.8]} 27. Qh8# {[%clk 0:03:53.9]} 1-0

[Event "Live Chess"]
[Site "Chess.com"]
[Date "2023.05.20"]
[Round "-"]
[White "elvenstar"]
[Black "ExIsambard"]
[Result "0-1"]
[WhiteElo "1565"]
[BlackElo "1971"]
[TimeControl "300"]
[EndTime "14:30:01 PDT"]
[Termination "ExIsambard won by resignation"]

1. e4 {[%clk 0:04:58.6]} 1... Nc6 {[%clk 0:04:37.6]} 2. Nf3 {[%clk 0:04:55.8]}
2... d5 {[%clk 0:04:36.8]} 3. e5 {[%clk 0:04:53.4]} 3... Bg4 {[%clk 0:04:31.3]}
4. Be2 {[%clk 0:04:45]} 4... Bxf3 {[%clk 0:04:28.3]} 5. Bxf3 {[%clk 0:04:42.8]}
5... Nxe5 {[%clk 0:04:27.6]} 6. d4 {[%clk 0:04:39.9]} 6... Ng6 {[%clk
0:04:24.2]} 7. O-O {[%clk 0:04:38]} 7... c6 {[%clk 0:04:23.3]} 8. Bg5 {[%clk
0:04:34.6]} 8... Nf6 {[%clk 0:04:21.4]} 9. c3 {[%clk 0:04:32.2]} 9... e6 {[%clk
0:04:20]} 10. Nd2 {[%clk 0:04:27]} 10... Bd6 {[%clk 0:04:19.2]} 11. g3 {[%clk
0:04:13.5]} 11... h6 {[%clk 0:04:15.1]} 12. Bxf6 {[%clk 0:04:10.7]} 12... Qxf6
{[%clk 0:04:14.9]} 13. Bg2 {[%clk 0:04:09.4]} 13... O-O-O {[%clk 0:04:11.8]} 14.
b4 {[%clk 0:04:07.6]} 14... h5 {[%clk 0:03:59.2]} 15. h3 {[%clk 0:04:01.5]}
15... e5 {[%clk 0:03:54]} 16. a4 {[%clk 0:03:50.4]} 16... h4 {[%clk 0:03:49.8]}
17. Qf3 {[%clk 0:03:44.8]} 17... hxg3 {[%clk 0:03:25.3]} 18. fxg3 {[%clk
0:03:36.1]} 18... Qxf3 {[%clk 0:03:18.7]} 19. Rxf3 {[%clk 0:03:26]} 19... f6
{[%clk 0:03:13.8]} 20. Nb3 {[%clk 0:03:07.3]} 20... e4 {[%clk 0:03:08.7]} 21.
Re3 {[%clk 0:03:04.7]} 21... f5 {[%clk 0:03:07.8]} 22. Rf1 {[%clk 0:02:54.8]}
22... f4 {[%clk 0:03:05.9]} 23. gxf4 {[%clk 0:02:52.7]} 23... Nxf4 {[%clk
0:03:04.6]} 24. Nc5 {[%clk 0:02:25.8]} 24... g5 {[%clk 0:03:01.3]} 25. c4 {[%clk
0:01:55.7]} 25... Rdg8 {[%clk 0:02:54.2]} 26. cxd5 {[%clk 0:01:50.4]} 26... cxd5
{[%clk 0:02:52]} 27. Rc1 {[%clk 0:01:45.4]} 27... Kb8 {[%clk 0:02:50]} 28. Nd7+
{[%clk 0:01:37]} 28... Ka8 {[%clk 0:02:48.8]} 29. Nf6 {[%clk 0:01:31.6]} 29...
Rg6 {[%clk 0:02:43.9]} 30. Ng4 {[%clk 0:01:23.7]} 30... Bxb4 {[%clk 0:02:24.4]}
31. Rb3 {[%clk 0:01:02.4]} 31... a5 {[%clk 0:02:18.3]} 32. Rc7 {[%clk
0:00:53.9]} 32... Ne2+ {[%clk 0:01:51]} 33. Kh1 {[%clk 0:00:44.2]} 33... Nxd4
{[%clk 0:01:49.2]} 34. Rb1 {[%clk 0:00:20.2]} 34... Rc6 {[%clk 0:01:30.1]} 35.
Ne5 {[%clk 0:00:17]} 35... Rxc7 {[%clk 0:01:28.4]} 0-1